bitfinex-derivatives/quotes_ETHF0:USTF0_20230903
["timestamp","ask_amount","ask_price","bid_price","bid_amount"]
[1693773164749,20.07510505,1639.3,1639.2,3.05074]
[1693773167748,27.90403767,1639.3,1639.2,3.05074]
[1693773167943,27.90403767,1639.3,1639.2,6.10157]
[1693773168147,27.90403767,1639.3,1639.2,3.05074]
[1693773169248,27.90403767,1639.3,1639.2,3.05083]
[1693773170247,5.497,1639.2,1639.1,8.68408]
[1693773170448,22.62279,1639.2,1639.1,11.7351]
[1693773175759,22.62279,1639.2,1639.1,14.60226352]
[1693773177553,22.62279,1639.2,1639.1,11.7351]
[1693773177758,22.62279,1639.2,1639.1,14.60226352]
[1693773180164,22.62279,1639.2,1639.1,11.7351]
[1693773180462,22.62279,1639.2,1639.1,14.60226352]
[1693773183167,17.12579,1639.2,1639.1,14.60226352]
[1693773183465,17.12579,1639.2,1639.1,11.7351]
[1693773192582,19.63339,1639.2,1639.1,11.7351]
[1693773197081,19.63339,1639.2,1639.1,9.1528]
[1693773217802,19.63339,1639.2,1639.1,6.10178]
[1693773218006,28.18122,1639.2,1638.9,6.10262]
[1693773218210,5.497,1639.0,1638.9,3.0513]
[1693773218400,18.19078289,1639.0,1638.8,9.21542]
[1693773218602,8.0357,1638.9,1638.8,9.21542]
[1693773218800,19.06955375,1638.9,1638.8,9.21542]
[1693773222206,19.06955375,1638.9,1638.8,6.1639]
[1693773232315,22.12094375,1638.9,1638.8,3.11244]
[1693773233010,22.12094375,1638.9,1638.8,6.16402]
[1693773233721,19.06955375,1638.9,1638.8,6.16402]
[1693773243337,19.06955375,1638.9,1638.8,6.10302]
[1693773249737,19.06955375,1638.9,1638.8,6.16402]
[1693773251939,19.13055375,1638.9,1638.8,6.16402]
[1693773253337,19.13055375,1638.9,1638.8,6.10302]
[1693773253928,19.13055375,1638.9,1638.8,6.16402]
[1693773254437,19.13055375,1638.9,1638.8,6.10302]
[1693773254637,19.13055375,1638.9,1638.8,6.16402]
[1693773255533,19.06955375,1638.9,1638.8,6.16402]
[1693773267443,19.06955375,1638.9,1638.8,3.11244]
[1693773267741,22.12094375,1638.9,1638.8,0.061]
[1693773268346,30.01248512,1638.9,1638.8,0.061]
[1693773283251,0.061,1638.8,1638.7,9.155]
[1693773283457,12.26732,1638.8,1638.7,6.16429]
[1693773283654,14.85642,1638.8,1638.7,6.16429]
[1693773284259,14.85642,1638.8,1638.7,3.1126]
[1693773285265,14.85642,1638.8,1638.7,6.16436]
[1693773286357,14.85642,1638.8,1638.7,6.10336]
[1693773288562,6.16416,1638.8,1638.7,9.15512]
[1693773289066,6.16416,1638.8,1638.7,12.02228352]
[1693773289367,9.21574,1638.8,1638.7,12.02228352]
[1693773290465,9.21574,1638.8,1638.7,9.15512]
[1693773293365,14.71274,1638.8,1638.7,9.21612]
[1693773294572,14.71274,1638.8,1638.7,12.08328352]
[1693773294973,14.71274,1638.8,1638.7,9.21612]
[1693773298473,15.19679946,1638.8,1638.7,9.21612]
[1693773299074,15.19679946,1638.8,1638.7,12.08328352]
[1693773300380,15.13579946,1638.8,1638.7,15.13504352]
[1693773300771,15.13579946,1638.8,1638.7,12.08328352]
[1693773303477,15.13579946,1638.8,1638.7,9.21612]
[1693773306080,15.13579946,1638.8,1638.7,12.08328352]
[1693773306483,5.497,1638.8,1638.7,15.13505352]
[1693773307387,4.2435,1638.8,1638.7,15.13505352]
[1693773313297,5.497,1638.8,1638.7,15.13505352]
[1693773315403,5.497,1639.0,1638.8,0.061]
[1693773315697,5.497,1639.0,1638.9,20.3941]
[1693773317302,5.497,1639.0,1638.9,17.3427]
[1693773317500,8.54819,1639.0,1638.9,17.3427]
[1693773318003,11.59938,1639.0,1638.9,17.3427]
[1693773318900,11.59938,1639.0,1638.9,14.47553648]
[1693773319201,11.59938,1639.0,1638.9,17.3427]
[1693773330613,11.59938,1639.0,1638.9,14.47553648]
[1693773331108,11.59938,1639.0,1638.9,17.3427]
[1693773333217,11.60510174,1639.0,1638.9,17.3427]
[1693773334617,14.65629174,1639.0,1638.9,17.3427]
[1693773336117,11.60510174,1639.0,1638.9,17.3427]
[1693773339619,11.60510174,1639.0,1638.9,14.47553648]
[1693773340120,11.60510174,1639.0,1638.9,17.3427]
[1693773340620,11.60510174,1639.0,1638.9,14.47553648]
[1693773341222,11.60510174,1639.0,1638.9,17.3427]
[1693773342322,5.50272174,1639.0,1638.9,17.3427]
[1693773343524,8.55393174,1639.0,1638.9,17.3427]
[1693773344022,11.60514174,1639.0,1638.9,17.3427]
[1693773348227,11.60514174,1639.0,1638.9,14.47553648]
[1693773348427,11.60514174,1639.0,1638.9,17.3427]
[1693773356233,14.65635174,1639.0,1638.9,17.3427]
[1693773360537,14.65635174,1639.0,1638.9,14.47553648]
[1693773361134,25.55453168,1639.0,1638.9,3.0514]
[1693773361333,25.55453168,1639.0,1638.8,6.16396]
[1693773361528,12.40098375,1638.9,1638.8,6.16396]
[1693773361734,21.55515375,1638.9,1638.8,6.16396]
[1693773362135,21.56086774,1638.9,1638.8,6.16396]
[1693773362335,21.56086774,1638.9,1638.8,9.21554]
[1693773363142,21.56086774,1638.9,1638.8,6.16396]
[1693773364245,21.56086774,1638.9,1638.8,9.21554]
[1693773382562,12.26722,1638.8,1638.7,9.15507]
[1693773382757,17.76422,1638.8,1638.7,9.15507]
[1693773383154,17.76992624,1638.8,1638.7,9.15507]
[1693773387265,14.71834624,1638.8,1638.7,9.15507]
[1693773399167,5.56360624,1638.8,1638.7,15.07400352]
[1693773401772,5.56360624,1638.8,1638.7,15.13500352]
[1693773408268,8.61516624,1638.8,1638.7,15.13500352]
[1693773408881,5.56360624,1638.8,1638.7,15.13500352]
[1693773409866,5.50270624,1638.8,1638.7,15.13500352]
[1693773410067,5.50270624,1638.8,1638.7,15.07400352]
[1693773410678,5.50270624,1638.8,1638.7,15.13500352]
[1693773413469,8.55428624,1638.8,1638.7,15.13500352]
[1693773414385,11.60586624,1638.8,1638.7,15.13500352]
[1693773414981,8.55428624,1638.8,1638.7,15.13500352]
[1693773416283,11.60586624,1638.8,1638.7,15.13500352]
[1693773416784,8.55428624,1638.8,1638.7,15.13500352]
[1693773417278,11.60586624,1638.8,1638.7,15.13500352]
[1693773419486,11.60586624,1638.8,1638.7,12.26784]
[1693773421086,11.60586624,1638.8,1638.7,15.13500352]
[1693773422876,11.60586624,1638.8,1638.7,12.26784]
[1693773423484,14.65744624,1638.8,1638.7,12.26784]
[1693773423690,14.65744624,1638.8,1638.7,9.21607]
[1693773430192,14.71844624,1638.8,1638.7,9.21607]
[1693773436600,14.71844624,1638.8,1638.7,12.08323352]
[1693773439398,14.71844624,1638.8,1638.7,9.21607]
[1693773443700,14.71844624,1638.8,1638.7,12.08323352]
[1693773445701,14.71844624,1638.8,1638.7,9.21607]
[1693773453496,14.71844624,1638.8,1638.7,12.08323352]
[1693773461213,14.71844624,1638.8,1638.7,9.21607]
[1693773466411,14.71844624,1638.8,1638.7,12.08323352]
[1693773469621,14.71844624,1638.8,1638.7,9.21607]
[1693773474827,17.77002624,1638.8,1638.7,6.16439]
[1693773475126,5.558,1638.7,1638.6,6.10379]
[1693773475417,19.77991,1638.7,1638.6,9.1557]
[1693773475622,21.65959375,1638.7,1638.6,9.1557]
[1693773476222,21.66529713,1638.7,1638.6,9.1557]
[1693773480233,21.66529713,1638.7,1638.6,12.02286352]
[1693773481932,21.60429713,1638.7,1638.6,12.02286352]
[1693773484534,21.60429713,1638.7,1638.6,9.1557]
[1693773492541,8.13120338,1638.7,1638.6,15.07482352]
[1693773494033,14.23474338,1638.7,1638.6,15.07482352]
[1693773495742,5.50270338,1638.7,1638.6,15.07482352]
[1693773495943,8.55448338,1638.7,1638.6,15.07482352]
[1693773496143,5.50270338,1638.7,1638.6,15.07482352]
[1693773496838,8.55447338,1638.7,1638.6,15.07482352]
[1693773497043,5.50270338,1638.7,1638.6,15.07482352]
[1693773498749,0.00570338,1638.7,1638.6,15.07482352]
[1693773498943,5.497,1638.8,1638.7,2.26993648]
[1693773499244,5.497,1638.8,1638.7,14.47701648]
[1693773500046,5.50249177,1638.8,1638.7,14.47701648]
[1693773502944,5.497,1638.9,1638.7,14.47701648]
[1693773503145,5.497,1639.0,1638.8,15.07352352]
[1693773503343,5.497,1639.0,1638.9,14.47553648]
[1693773503941,0.48025299,1639.2,1638.9,19.97253648]
[1693773504142,2.4279,1639.5,1639.1,5.497]
[1693773504345,5.497,1639.7,1639.4,5.497]
[1693773504652,5.497,1639.7,1639.5,18.11856352]
[1693773505145,5.497,1639.7,1639.6,14.47033648]
[1693773507043,5.50155538,1639.7,1639.6,14.47033648]
[1693773508743,11.60135538,1639.7,1639.6,14.47033648]
[1693773508950,14.65126538,1639.7,1639.6,9.1503]
[1693773509151,17.70117538,1639.7,1639.6,6.1002]
[1693773509446,14.65126538,1639.7,1639.6,9.1503]
[1693773509746,14.65126538,1639.7,1639.6,6.1002]
[1693773509946,17.70117538,1639.7,1639.6,6.1002]
[1693773515556,17.70117538,1639.7,1639.6,9.1503]
[1693773519558,14.65126538,1639.7,1639.6,9.1503]
[1693773519753,14.65126538,1639.7,1639.6,12.01746352]
[1693773521855,14.65126538,1639.7,1639.6,9.1503]
[1693773522960,13.73581198,1639.7,1639.6,12.01746352]
[1693773524057,13.73581198,1639.7,1639.6,9.1503]
[1693773524860,13.73581198,1639.7,1639.6,12.01746352]
[1693773526357,4.58610198,1639.7,1639.6,15.06756352]
[1693773527054,3.06047234,1639.7,1639.6,15.06756352]
[1693773527961,0.00455538,1639.7,1639.6,15.06756352]
[1693773528161,2.4279,1639.8,1639.7,0.01366614]
[1693773528358,2.4279,1639.8,1639.7,19.91544428]
[1693773528553,2.4279,1639.8,1639.7,20.72980124]
[1693773529062,2.43192598,1639.8,1639.7,20.72980124]
[1693773529265,2.43192598,1639.8,1639.7,19.91512843]
[1693773530157,2.4279,1639.8,1639.7,19.91512843]
[1693773530356,7.9249,1639.8,1639.7,19.91512843]
[1693773531060,7.9249,1639.8,1639.7,21.50256041]
[1693773531763,7.9249,1639.8,1639.7,19.91512843]
[1693773531957,7.9249,1639.8,1639.7,21.50270553]
[1693773532157,7.92890496,1639.8,1639.7,21.50270553]
[1693773533556,7.92890496,1639.8,1639.7,19.91512843]
[1693773534166,7.92890496,1639.8,1639.7,19.91521501]
[1693773535772,7.92890496,1639.8,1639.7,19.12152314]
[1693773536071,7.92890496,1639.8,1639.7,21.50272982]
[1693773537869,7.92890496,1639.8,1639.7,19.91521501]
[1693773542584,7.92890496,1639.8,1639.7,17.53400833]
[1693773542793,7.92890496,1639.8,1639.7,20.70895058]
[1693773545192,14.02830496,1639.8,1639.7,18.44729698]
[1693773545380,17.07800496,1639.8,1639.7,15.26407185]
[1693773545585,17.07800496,1639.8,1639.7,17.65160847]
[1693773545784,17.07800496,1639.8,1639.7,17.65170714]
[1693773545986,17.07800496,1639.8,1639.7,18.44729698]
[1693773547793,17.07800496,1639.8,1639.7,15.26407185]
[1693773548788,17.07800496,1639.8,1639.7,19.23274966]
[1693773550394,17.07800496,1639.8,1639.7,22.09991318]
[1693773551793,17.07800496,1639.8,1639.7,21.32284745]
[1693773553292,3.97214124,1640.5,1639.7,54.86891966]
[1693773553593,0.061,1640.5,1640.2,9.48236164]
[1693773553902,2.4993,1640.4,1640.3,32.11488373]
[1693773554090,2.50305144,1640.4,1640.3,32.11488373]
[1693773554894,0.00375144,1640.4,1640.3,26.61788373]
[1693773555095,0.55595657,1640.9,1640.3,32.91429735]
[1693773555296,0.061,1640.9,1640.7,7.08849957]
[1693773555597,0.061,1640.9,1640.8,17.32854]
[1693773556191,3.11228029,1640.9,1640.8,17.32854]
[1693773557086,11.65694029,1640.9,1640.8,17.32854]
[1693773557492,14.24824029,1640.9,1640.8,17.32854]
[1693773559797,17.29590029,1640.9,1640.8,9.14358]
[1693773560197,14.24824029,1640.9,1640.8,15.05860352]
[1693773561200,17.29590029,1640.9,1640.8,15.05860352]
[1693773561791,17.29590029,1640.9,1640.8,12.01074352]
[1693773565006,17.29590029,1640.9,1640.8,9.14358]
[1693773565603,20.34356029,1640.9,1640.8,3.04786]
[1693773567607,20.34356029,1640.9,1640.8,6.09572]
[1693773568302,14.84656029,1640.9,1640.8,6.09572]
[1693773570312,14.84656029,1640.9,1640.8,3.04786]
[1693773572003,14.84656029,1640.9,1640.8,6.09572]
[1693773573114,20.34356029,1640.9,1640.8,6.09572]
[1693773575111,20.34356029,1640.9,1640.8,3.04784]
[1693773576414,20.34356029,1640.9,1640.7,6.09586]
[1693773577015,14.07559913,1640.8,1640.7,6.09586]
[1693773578217,14.0792609,1640.8,1640.7,6.09586]
[1693773579210,14.0792609,1640.8,1640.6,9.14432]
[1693773579413,2.5821,1640.7,1640.6,9.14432]
[1693773579717,11.72616,1640.7,1640.6,9.14432]
[1693773582019,11.72616,1640.7,1640.6,15.05969352]
[1693773582413,2.5821,1640.7,1640.6,2.86716352]
[1693773582919,1.66722044,1640.7,1640.6,2.86716352]
[1693773583821,1.66722044,1640.7,1640.5,8.25594786]
[1693773584018,2.5917,1640.6,1640.5,11.12311138]
[1693773588124,2.59534631,1640.6,1640.5,11.12311138]
[1693773596729,2.59534631,1640.6,1640.5,12.71461095]
[1693773596931,2.59534631,1640.6,1640.5,11.12311138]
[1693773597831,2.59534631,1640.6,1640.5,15.76426353]
[1693773598031,2.59534631,1640.6,1640.5,15.76422766]
[1693773598735,2.59534631,1640.6,1640.5,16.55997745]
[1693773598928,4.47958544,1640.6,1640.5,14.29004097]
[1693773599132,4.47958544,1640.6,1640.5,15.88614656]
[1693773599327,4.54048544,1640.6,1640.5,5.13480253]
[1693773599528,4.54048544,1640.6,1640.5,2.08518582]
[1693773600031,4.54048544,1640.6,1640.5,0.48901138]
[1693773600229,4.54048544,1640.6,1640.5,2.86716352]
[1693773600532,2.59534631,1640.6,1640.5,7.51306756]
[1693773601534,2.59534631,1640.6,1640.5,9.90031692]
[1693773602136,2.59534631,1640.6,1640.5,7.51306756]
[1693773603134,2.59534631,1640.6,1640.5,13.01006756]
[1693773603334,2.59534631,1640.6,1640.5,13.01001954]
[1693773603728,2.59534631,1640.6,1640.5,9.96033796]
[1693773604532,2.59534631,1640.6,1640.5,8.36416352]
[1693773605135,2.59534631,1640.6,1640.5,9.96033796]
[1693773605537,2.59534631,1640.6,1640.5,8.36416352]
[1693773612844,11.73997631,1640.6,1640.5,17.50933352]
[1693773614043,11.73997631,1640.6,1640.5,17.9955289]
[1693773614544,11.73997631,1640.6,1640.5,21.0439289]
[1693773629350,8.69176631,1640.6,1640.5,21.0439289]
[1693773633156,8.68812,1640.6,1640.5,21.0439289]
[1693773633556,5.63991,1640.6,1640.5,21.0439289]
[1693773635558,2.5917,1640.6,1640.5,21.0439289]
[1693773645466,2.5917,1640.6,1640.5,18.17676538]
[1693773647061,2.5917,1640.6,1640.5,21.0439289]
[1693773679986,2.5917,1640.6,1640.5,18.17676538]
[1693773681278,2.5917,1640.6,1640.5,21.0439289]
[1693773691898,8.74912,1640.6,1640.5,18.17676538]
[1693773692098,0.061,1640.5,1640.4,6.10616328]
[1693773692392,20.3733,1640.5,1640.4,0.00914328]
[1693773692595,22.25753913,1640.5,1640.4,3.04859]
[1693773692800,22.25753913,1640.5,1640.4,2.84619]
[1693773693300,22.25753913,1640.5,1640.4,5.89478]
[1693773699305,22.25753913,1640.5,1640.4,8.94337]
[1693773702910,22.25753913,1640.5,1640.4,5.89478]
[1693773703102,22.21153913,1640.5,1640.4,5.89477]
[1693773703610,22.21153913,1640.5,1640.4,8.94337]
[1693773706911,19.16313913,1640.5,1640.4,8.94337]
[1693773710717,19.16313913,1640.5,1640.4,11.81053352]
[1693773710922,17.2789,1640.5,1640.4,11.81053352]
[1693773712424,17.2789,1640.5,1640.4,8.94337]
[1693773717924,17.2789,1640.5,1640.4,11.99197]
[1693773721025,17.2789,1640.5,1640.4,14.85913352]
[1693773721226,17.2789,1640.5,1640.4,11.99197]
[1693773735932,20.3273,1640.5,1640.4,5.89477]
[1693773736332,24.46111387,1640.5,1640.4,2.84619]
[1693773736537,24.46111582,1640.5,1640.4,2.84619]
[1693773736832,24.46111582,1640.5,1640.4,5.89478]
[1693773741337,24.46111582,1640.5,1640.4,2.84619]
[1693773747540,20.3273,1640.5,1640.4,2.84619]
[1693773754657,20.3273,1640.5,1640.4,5.71335352]
[1693773754851,20.3273,1640.5,1640.4,2.84619]
[1693773755854,20.3273,1640.5,1640.4,5.89478]
[1693773759258,20.3273,1640.5,1640.4,8.76194352]
[1693773759456,14.1695,1640.5,1640.4,11.81053352]
[1693773759755,14.1695,1640.5,1640.4,14.85912352]
[1693773759756,2.5757,1640.5,1640.4,14.85912352]
[1693773761673,5.6241,1640.5,1640.4,14.85912352]
[1693773762660,2.5757,1640.5,1640.4,14.85912352]
[1693773764261,5.6241,1640.5,1640.4,14.85912352]
[1693773768164,8.6725,1640.5,1640.4,14.85912352]
[1693773780775,5.6241,1640.5,1640.4,14.85912352]
[1693773781081,8.6725,1640.5,1640.4,14.85912352]
[1693773785881,8.7335,1640.5,1640.4,14.85912352]
[1693773794991,8.7335,1640.5,1640.4,11.99196]
[1693773795196,11.7819,1640.5,1640.4,8.94337]
[1693773795490,14.8303,1640.5,1640.4,5.89478]
[1693773798396,14.8303,1640.5,1640.4,8.94337]
[1693773803199,20.3273,1640.5,1640.4,8.94337]
[1693773807699,17.2789,1640.5,1640.4,8.94337]
[1693773830931,17.2789,1640.5,1640.4,11.81053352]
[1693773831329,17.2789,1640.5,1640.4,8.94337]
[1693773831628,17.2789,1640.5,1640.4,11.81053352]
[1693773832132,17.2789,1640.5,1640.4,8.94337]
[1693773832930,17.2789,1640.5,1640.4,11.81053352]
[1693773833133,17.2789,1640.5,1640.4,8.94337]
[1693773838032,17.2789,1640.5,1640.4,11.81053352]
[1693773845332,17.2789,1640.5,1640.4,8.94337]
[1693773847838,17.2789,1640.5,1640.4,11.81053352]
[1693773848041,17.2789,1640.5,1640.4,8.94337]
[1693773848838,17.2789,1640.5,1640.4,11.81053352]
[1693773850439,17.2789,1640.5,1640.4,8.94337]
[1693773852636,17.2789,1640.5,1640.4,11.81053352]
[1693773853038,17.2789,1640.5,1640.4,8.94337]
[1693773853440,20.3273,1640.5,1640.4,5.89478]
[1693773854439,27.84494789,1640.5,1640.4,5.89478]
[1693773855934,20.3273,1640.5,1640.4,5.89478]
[1693773857836,20.3273,1640.5,1640.4,8.94337]
[1693773858033,20.3273,1640.5,1640.4,5.89478]
[1693773858533,27.85014301,1640.5,1640.4,5.89478]
[1693773858734,20.3273,1640.5,1640.4,5.89478]
[1693773862535,20.3273,1640.5,1640.4,8.76194352]
[1693773864637,20.3273,1640.5,1640.4,11.81053352]
[1693773870455,20.3273,1640.5,1640.4,8.94337]
[1693773871249,20.3273,1640.5,1640.4,11.81053352]
[1693773872653,20.3273,1640.5,1640.4,8.94337]
[1693773873051,20.81326054,1640.5,1640.4,8.94337]
[1693773875659,20.81326054,1640.5,1640.4,11.81053352]
[1693773876754,20.81326054,1640.5,1640.4,8.94337]
[1693773877560,20.81326054,1640.5,1640.4,11.81053352]
[1693773877761,20.81326054,1640.5,1640.4,8.94337]
[1693773881767,17.76486054,1640.5,1640.4,8.94337]
[1693773882867,17.76486054,1640.5,1640.4,11.81053352]
[1693773890376,17.76486054,1640.5,1640.4,8.94337]
[1693773892872,17.76486054,1640.5,1640.4,11.81053352]
[1693773894978,25.29120416,1640.5,1640.4,11.81053352]
[1693773897184,25.29120416,1640.5,1640.4,8.94337]
[1693773897980,25.29120416,1640.5,1640.4,11.81053352]
[1693773899285,25.29120416,1640.5,1640.4,8.94337]
[1693773900183,25.29120416,1640.5,1640.4,11.81053352]
[1693773900580,25.23020416,1640.5,1640.4,11.81053352]
[1693773900785,22.18180416,1640.5,1640.4,11.81053352]
[1693773900992,14.65546054,1640.5,1640.4,11.81053352]
[1693773901189,14.1695,1640.5,1640.4,14.85912352]
[1693773905893,17.2179,1640.5,1640.4,14.85912352]
[1693773906995,17.2179,1640.5,1640.4,8.94337]
[1693773907294,20.3273,1640.5,1640.4,8.94337]
[1693773910492,20.3273,1640.5,1640.4,11.81053352]
[1693773913587,17.2789,1640.5,1640.4,11.81053352]
[1693773914895,17.2789,1640.5,1640.4,8.94337]
[1693773915087,17.2789,1640.5,1640.4,11.81053352]
[1693773915497,17.2789,1640.5,1640.4,8.94337]
[1693773916195,17.2789,1640.5,1640.4,11.81053352]
[1693773948318,17.2179,1640.5,1640.4,11.81053352]
[1693773948528,14.1695,1640.5,1640.4,14.85912352]
[1693773949827,8.0727,1640.5,1640.4,14.85912352]
[1693773951230,5.497,1640.5,1640.4,14.85912352]
[1693773951936,8.0887,1640.6,1640.4,14.85912352]
[1693773952138,8.0887,1640.6,1640.5,2.26993648]
[1693773952328,8.0887,1640.6,1640.5,14.46353648]
[1693773953727,11.13692,1640.6,1640.5,14.46353648]
[1693773954135,8.0887,1640.6,1640.5,14.46353648]
[1693773954331,11.13692,1640.6,1640.5,14.46353648]
[1693773955237,14.18514,1640.6,1640.5,14.46353648]
[1693773956938,11.13692,1640.6,1640.5,14.46353648]
[1693773961440,14.18514,1640.6,1640.5,14.46353648]
[1693773962236,11.13692,1640.6,1640.5,14.46353648]
[1693773962539,14.18514,1640.6,1640.5,14.46353648]
[1693773964029,11.13692,1640.6,1640.5,14.46353648]
[1693773964536,14.18514,1640.6,1640.5,14.46353648]
[1693773964736,8.0887,1640.6,1640.5,14.46353648]
[1693773964939,11.13692,1640.6,1640.5,14.46353648]
[1693773965143,14.18514,1640.6,1640.5,14.46353648]
[1693773966837,17.23336,1640.6,1640.5,14.46353648]
[1693773967045,14.18514,1640.6,1640.5,14.46353648]
[1693773967946,14.18514,1640.6,1640.5,12.1936]
[1693773970946,17.23336,1640.6,1640.5,9.1452]
[1693773971147,14.18514,1640.6,1640.5,9.1452]
[1693773971450,17.23336,1640.6,1640.5,9.1452]
[1693773971844,14.18514,1640.6,1640.5,9.1452]
[1693773972049,17.23336,1640.6,1640.5,9.1452]
[1693773973749,20.34248,1640.6,1640.5,6.0968]
[1693773975950,20.34248,1640.6,1640.5,9.1452]
[1693773982347,20.34248,1640.6,1640.5,6.0968]
[1693773983046,20.34248,1640.6,1640.5,9.1452]
[1693773991360,20.34248,1640.6,1640.5,6.0968]
[1693773991555,20.34248,1640.6,1640.5,9.1452]
[1693773991955,20.34248,1640.6,1640.5,6.0968]
[1693773992554,20.34248,1640.6,1640.5,9.1452]
[1693773992964,17.29426,1640.6,1640.5,9.1452]
[1693773997963,17.23336,1640.6,1640.5,9.1452]
[1693774006675,17.71288666,1640.6,1640.5,9.1452]
[1693774009885,17.71288666,1640.6,1640.5,12.01236352]
[1693774013381,17.71288666,1640.6,1640.5,9.1452]
[1693774015282,17.71288666,1640.6,1640.5,12.01236352]
[1693774018499,17.71288666,1640.6,1640.5,9.1452]
[1693774019497,17.71288666,1640.6,1640.5,12.01236352]
[1693774022402,24.94462002,1640.6,1640.5,12.01236352]
[1693774023105,24.94462002,1640.6,1640.5,9.1452]
[1693774024904,24.94462002,1640.6,1640.5,12.01236352]
[1693774026108,24.94462002,1640.6,1640.5,9.1452]
[1693774029010,24.94462002,1640.6,1640.5,12.01236352]
[1693774029509,24.94462002,1640.6,1640.5,9.1452]
[1693774033015,24.94462002,1640.6,1640.5,12.01236352]
[1693774033415,24.94462002,1640.6,1640.5,9.1452]
[1693774034115,24.94462002,1640.6,1640.5,12.01236352]
[1693774034516,24.94462002,1640.6,1640.5,9.1452]
[1693774035214,24.94462002,1640.6,1640.5,12.01236352]
[1693774035615,24.94462002,1640.6,1640.5,9.1452]
[1693774038222,24.94462002,1640.6,1640.5,12.01236352]
[1693774039915,24.94462002,1640.6,1640.5,9.1452]
[1693774041420,24.94462002,1640.6,1640.5,12.01236352]
[1693774041617,24.94462002,1640.6,1640.5,9.1452]
[1693774043614,24.94462002,1640.6,1640.5,12.01236352]
[1693774045127,24.94462002,1640.6,1640.5,9.1452]
[1693774048832,24.94462002,1640.6,1640.5,12.01236352]
[1693774051431,24.94462002,1640.6,1640.5,9.1452]
[1693774053031,24.94462002,1640.6,1640.5,12.01236352]
[1693774055334,24.94462002,1640.6,1640.5,9.1452]
[1693774056133,24.94462002,1640.6,1640.5,12.01236352]
[1693774059538,24.94462002,1640.6,1640.5,9.1452]
[1693774063337,24.94462002,1640.6,1640.5,12.01236352]
[1693774064537,24.94462002,1640.6,1640.5,9.1452]
[1693774065537,24.94462002,1640.6,1640.5,12.01236352]
[1693774065934,24.94462002,1640.6,1640.5,9.1452]
[1693774066540,24.94462002,1640.6,1640.5,12.01236352]
[1693774076548,24.94462002,1640.6,1640.5,9.1452]
[1693774079852,24.94462002,1640.6,1640.5,12.01236352]
[1693774090456,24.94462002,1640.6,1640.5,9.1452]
[1693774093059,24.94462002,1640.6,1640.5,12.01236352]
[1693774094765,24.94462002,1640.6,1640.5,9.1452]
[1693774096361,24.94462002,1640.6,1640.5,12.01236352]
[1693774098763,14.66466666,1640.6,1640.5,12.01236352]
[1693774099074,2.5917,1640.6,1640.5,20.55777352]
[1693774099316,24.36631224,1641.0,1640.5,20.55777352]
[1693774099317,12.73058638,1641.0,1640.5,22.15737451]
[1693774099472,5.497,1641.0,1640.7,5.497]
[1693774099767,5.497,1641.0,1640.8,18.10636352]
[1693774099966,5.497,1641.0,1640.9,2.26993648]
[1693774100155,5.497,1641.0,1640.9,14.46057648]
[1693774118278,8.0767,1641.0,1640.9,14.46057648]
[1693774135788,2.5797,1641.0,1640.9,14.46057648]
[1693774139505,2.06765456,1641.1,1641.0,15.97163799]
[1693774139692,2.06765456,1641.1,1641.0,21.6495585]
[1693774139880,2.06765456,1641.1,1641.0,26.9071202]
[1693774140281,6.16418,1641.5,1641.0,26.9071202]
[1693774140589,11.66118,1641.5,1641.3,12.1878]
[1693774140888,11.66118,1641.5,1641.3,15.13089734]
[1693774143580,5.0174,1641.4,1641.3,15.13089734]
[1693774154495,5.0174,1641.4,1641.3,20.62789734]
[1693774156289,2.5977,1641.4,1641.3,20.62789734]
[1693774168812,2.5977,1641.4,1641.3,20.60869734]
[1693774173412,2.13761854,1641.4,1641.3,20.60869734]
[1693774183424,2.13761854,1641.4,1641.3,22.19981433]
[1693774183622,2.13761854,1641.4,1641.3,20.60869734]
[1693774184525,2.13761854,1641.4,1641.3,22.19981433]
[1693774186526,2.13761854,1641.4,1641.3,20.60869734]
[1693774201530,2.13761854,1641.4,1641.3,17.74153382]
[1693774201728,2.13761854,1641.4,1641.2,5.14097421]
[1693774201729,8.23131854,1641.4,1641.2,8.54417]
[1693774201938,8.23131854,1641.4,1641.2,5.17685]
[1693774201939,5.5579,1641.3,1641.2,5.17685]
[1693774202128,0.0609,1641.2,1641.1,6.09456]
[1693774202327,9.20256,1641.2,1641.1,6.09456]
[1693774202528,0.0609,1641.2,1641.1,9.14197]
[1693774202722,0.0609,1641.2,1641.1,17.68638]
[1693774203033,0.0609,1641.2,1641.1,14.63897]
[1693774203034,6.15534,1641.2,1641.1,14.63897]
[1693774204427,6.15534,1641.2,1641.1,17.68638]
[1693774204627,0.0609,1641.2,1641.1,17.68638]
[1693774205225,7.63461854,1641.4,1641.1,20.55354352]
[1693774205427,7.63461854,1641.4,1641.2,5.57293382]
[1693774205428,5.18448854,1641.4,1641.2,5.57293382]
[1693774205628,8.23138854,1641.4,1641.3,9.14112]
[1693774206135,16.77528854,1641.4,1641.3,3.04704]
[1693774207136,16.77528854,1641.4,1641.3,6.09408]
[1693774213236,16.77528854,1641.4,1641.3,9.14112]
[1693774213431,16.77528854,1641.4,1641.3,6.09408]
[1693774213833,19.82218854,1641.4,1641.3,3.04704]
[1693774214542,19.82218854,1641.4,1641.2,6.09422]
[1693774214742,19.82218854,1641.4,1641.3,3.04704]
[1693774214936,22.09212502,1641.4,1641.3,3.04704]
[1693774216344,19.04522502,1641.4,1641.3,9.14112]
[1693774218643,15.99832502,1641.4,1641.3,9.14112]
[1693774218845,13.72838854,1641.4,1641.3,12.00828352]
[1693774219243,2.13761854,1641.4,1641.3,20.55232352]
[1693774219544,0.01,1641.5,1641.3,22.98362352]
[1693774219746,0.01,1641.5,1641.4,0.07593382]
[1693774220051,0.01,1641.5,1641.4,12.77081618]
[1693774220248,0.01,1641.5,1641.4,15.24431618]
[1693774223248,0.01,1641.5,1641.4,20.74131618]
[1693774239369,0.01,1641.5,1641.4,15.24431618]
[1693774243371,0.01,1641.5,1641.4,20.74131618]
[1693774249783,3.04577,1642.0,1641.6,5.497]
[1693774249982,0.0609,1642.7,1642.1,15.497]
[1693774250182,0.0609,1642.9,1642.6,5.497]
[1693774250386,6.39601783,1642.9,1642.8,12.17704]
[1693774250584,6.33511783,1642.9,1642.8,12.64002472]
[1693774250886,5.5579,1642.9,1642.8,12.17704]